fUST/lending_fUST_20240902
["ID","MTS","AMOUNT","RATE_DAILY","PERIOD"]
[336933069,1725247846990,-500.0,0.00025205,2]
[336933070,1725247846999,-669.14,0.00025205,2]
[336933071,1725247847008,-657.85,0.00025205,2]
[336933072,1725247847019,-500.0,0.00025205,2]
[336933073,1725247847028,-500.0,0.00025205,2]
[336933074,1725247847037,-541.21,0.00025205,2]
[336933075,1725247847046,-500.0,0.00025205,2]
[336933076,1725247847055,-580.81237293,0.00025205,2]
[336933077,1725247847065,-500.0,0.00025205,2]
[336933078,1725247847075,-2868.37,0.00025205,2]
[336933079,1725247847084,-500.0,0.00025205,2]
[336933080,1725247847094,-500.0,0.00025205,2]
[336933081,1725247847104,-500.0,0.00025205,2]
[336933082,1725247847113,-872.88,0.00025205,2]
[336933083,1725247847123,-500.0,0.00025205,2]
[336933084,1725247847132,-500.0,0.00025205,2]
[336933085,1725247847142,-974.86,0.00025205,2]
[336933086,1725247847151,-500.0,0.00025205,2]
[336933087,1725247847161,-500.0,0.00025205,2]
[336933088,1725247847171,-500.0,0.00025205,2]
[336933089,1725247847181,-541.43,0.00025205,2]
[336933090,1725247847192,-500.0,0.00025205,2]
[336933091,1725247847201,-500.0,0.00025205,2]
[336933092,1725247847211,-500.0,0.00025205,2]
[336933093,1725247847221,-500.0,0.00025205,2]
[336933094,1725247847230,-572.48,0.00025205,2]
[336933095,1725247847240,-500.0,0.00025205,2]
[336933096,1725247847251,-500.0,0.00025205,2]
[336933097,1725247847263,-576.04706634,0.00025205,2]
[336933098,1725247847272,-500.0,0.00025205,2]
[336933099,1725247847281,-500.0,0.00025205,2]
[336933100,1725247847290,-814.52,0.00025205,2]
[336933101,1725247847299,-500.0,0.00025205,2]
[336933102,1725247847308,-500.0,0.00025205,2]
[336933103,1725247847318,-1152.78,0.00025205,2]
[336933104,1725247847327,-795.35,0.00025205,2]
[336933105,1725247847337,-500.0,0.00025205,2]
[336933106,1725247847347,-665.0,0.00025205,2]
[336933107,1725247847356,-773.51,0.00025205,2]
[336933108,1725247847366,-619.02,0.00025205,2]
[336933109,1725247847377,-500.0,0.00025205,2]
[336933110,1725247847386,-224.95618936,0.00025205,2]
[336933111,1725247847396,-740.77,0.00025205,2]
[336933112,1725247847405,-500.0,0.00025205,2]
[336933113,1725247847415,-1131.06,0.00025205,2]
[336933114,1725247847424,-1042.52,0.00025205,2]
[336933115,1725247847434,-500.0,0.00025205,2]
[336933116,1725247847444,-500.0,0.00025205,2]
[336933117,1725247847453,-1557.63,0.00025205,2]
[336933118,1725247847463,-500.0,0.00025205,2]
[336933119,1725247847473,-2308.75,0.00025205,2]
[336933120,1725247847482,-513.5,0.00025205,2]
[336933121,1725247847491,-500.0,0.00025205,2]
[336933122,1725247847501,-500.0,0.00025205,2]
[336933123,1725247847512,-500.0,0.00025205,2]
[336933124,1725247847521,-2048.98,0.00025205,2]
[336933125,1725247847531,-500.0,0.00025205,2]
[336933126,1725247847541,-515.06,0.00025205,2]
[336933127,1725247847551,-500.0,0.00025205,2]
[336933128,1725247847560,-500.0,0.00025205,2]
[336933129,1725247847570,-500.0,0.00025205,2]
[336933130,1725247847579,-665.52,0.00025205,2]
[336933131,1725247847591,-1800.19,0.00025205,2]
[336933132,1725247847601,-10167.07,0.00025205,2]
[336933133,1725247847612,-1229.05,0.00025205,2]
[336933134,1725247847623,-500.0,0.00025205,2]
[336933135,1725247847633,-1503.03,0.00025205,2]
[336933136,1725247847644,-500.0,0.00025205,2]
[336933137,1725247847654,-500.0,0.00025205,2]
[336933138,1725247847667,-500.0,0.00025205,2]
[336933139,1725247847676,-1508.79,0.00025205,2]
[336933140,1725247847685,-500.0,0.00025205,2]
[336933141,1725247847695,-1031.19,0.00025205,2]
[336933142,1725247847704,-2334.08,0.00025205,2]
[336933143,1725247847714,-565.16,0.00025205,2]
[336933144,1725247847723,-500.0,0.00025205,2]
[336933145,1725247847732,-500.0,0.00025205,2]
[336933146,1725247847744,-500.0,0.00025205,2]
[336933147,1725247847753,-907.18,0.00025205,2]
[336933148,1725247847764,-500.0,0.00025205,2]
[336933149,1725247847773,-1336.84,0.00025205,2]
[336933150,1725247847784,-500.0,0.00025205,2]
[336933151,1725247847795,-1231.19,0.00025205,2]
[336933152,1725247847805,-500.0,0.00025205,2]
[336933153,1725247847817,-1146.78,0.00025205,2]
[336933154,1725247847827,-878.8,0.00025205,2]
[336933155,1725247847838,-1102.7,0.00025205,2]
[336933156,1725247847847,-1173.44,0.00025205,2]
[336933157,1725247847857,-500.0,0.00025205,2]
[336933158,1725247847866,-500.0,0.00025205,2]
[336933159,1725247847876,-1350.13,0.00025205,2]
[336933160,1725247847888,-3800.74,0.00025205,2]
[336933161,1725247847899,-1655.52,0.00025205,2]
[336933162,1725247847909,-573.64,0.00025205,2]
[336933163,1725247847919,-909.91,0.00025205,2]
[336933164,1725247847930,-2131.56,0.00025205,2]
[336933165,1725247847940,-500.0,0.00025205,2]
[336933166,1725247847951,-1292.3,0.00025205,2]
[336933167,1725247847960,-246.55492495,0.00025205,2]
[336933168,1725247847969,-548.55,0.00025205,2]
[336933169,1725247847978,-1223.37,0.00025205,2]
[336933170,1725247847991,-220.03224461,0.00025205,2]
[336933171,1725247848000,-500.0,0.00025205,2]
[336933172,1725247848011,-523.02,0.00025205,2]
[336933173,1725247848024,-500.0,0.00025205,2]
[336933174,1725247848035,-1177.84,0.00025205,2]
[336933175,1725247848044,-500.0,0.00025205,2]
[336933176,1725247848054,-1157.11,0.00025205,2]
[336933177,1725247848063,-828.87,0.00025205,2]
[336933178,1725247848073,-500.0,0.00025205,2]
[336933179,1725247848082,-1662.53,0.00025205,2]
[336933180,1725247848091,-1236.59,0.00025205,2]
[336933181,1725247848100,-833.18,0.00025205,2]
[336933182,1725247848109,-500.0,0.00025205,2]
[336933183,1725247848118,-6705.5,0.00025205,2]
[336933184,1725247848130,-500.0,0.00025205,2]
[336933185,1725247848139,-1446.77,0.00025205,2]
[336933186,1725247848149,-733.05,0.00025205,2]
[336933187,1725247848160,-1297.85,0.00025205,2]
[336933188,1725247848169,-500.0,0.00025205,2]
[336933189,1725247848178,-500.0,0.00025205,2]
[336933190,1725247848187,-780.64,0.00025205,2]
[336933191,1725247848196,-500.0,0.00025205,2]
[336933192,1725247848205,-500.0,0.00025205,2]
[336933193,1725247848214,-801.33,0.00025205,2]
[336933194,1725247848224,-1468.45,0.00025205,2]
[336933195,1725247848233,-500.0,0.00025205,2]
[336933196,1725247848242,-2505.73,0.00025205,2]
[336933197,1725247848252,-1303.21,0.00025205,2]
[336933198,1725247848264,-1173.96,0.00025205,2]
[336933199,1725247848272,-500.0,0.00025205,2]
[336933200,1725247848281,-500.0,0.00025205,2]
[336933201,1725247848290,-1090.89,0.00025205,2]
[336933202,1725247848299,-500.0,0.00025205,2]
[336933203,1725247848308,-3037.6,0.00025205,2]
[336933204,1725247848317,-676.38,0.00025205,2]
[336933205,1725247848326,-500.0,0.00025205,2]
[336933206,1725247848336,-656.24,0.00025205,2]
[336933207,1725247848345,-500.0,0.00025205,2]
[336933208,1725247848356,-618.61,0.00025205,2]
[336933209,1725247848365,-1123.72,0.00025205,2]
[336933210,1725247848375,-1038.05,0.00025205,2]
[336933211,1725247848385,-500.0,0.00025205,2]
[336933212,1725247848395,-557.66,0.00025205,2]
[336933213,1725247848405,-840.46,0.00025205,2]
[336933214,1725247848414,-1767.02,0.00025205,2]
[336933215,1725247848423,-1694.31,0.00025205,2]
[336933216,1725247848434,-500.0,0.00025205,2]
[336933217,1725247848443,-7557.96,0.00025205,2]
[336933218,1725247848453,-500.0,0.00025205,2]
[336933219,1725247848462,-1292.55,0.00025205,2]
[336933220,1725247848472,-1046.36,0.00025205,2]
[336933221,1725247848481,-500.0,0.00025205,2]
[336933222,1725247848491,-1000.0,0.00025221,2]
[336933223,1725247848500,-500.0,0.00025273,2]
[336933224,1725247848510,-255.426678,0.00025296,2]
[336933225,1725247848526,-276.166198,0.00025296,2]
[336933226,1725247848535,-277.191276,0.00025296,2]
[336933227,1725247848544,-256.841411,0.00025296,2]
[336933228,1725247848553,-218.416473,0.00025296,2]
[336933229,1725247848563,-214.722642,0.00025296,2]
[336933230,1725247848572,-409.7901659,0.0002537,2]
[336933231,1725247848581,-410.9769564,0.0002537,2]
[336933232,1725247848590,-523.84645152,0.00025469,3]
[336933233,1725247848599,-500.0,0.00025479,2]
[336933234,1725247848607,-500.0,0.00025479,2]
[336933235,1725247848616,-500.0,0.00025479,2]
[336933236,1725247848625,-500.0,0.00025479,2]
[336933237,1725247848634,-500.0,0.00025479,2]
[336933238,1725247848643,-500.0,0.00025479,2]
[336933239,1725247848652,-542.76,0.00025479,2]
[336933240,1725247848661,-553.72,0.00025479,2]
[336933241,1725247848673,-500.0,0.00025479,2]
[336933242,1725247848683,-500.0,0.00025479,2]
[336933243,1725247848692,-500.0,0.00025479,2]
[336933244,1725247848703,-500.0,0.00025479,2]
[336933245,1725247848712,-500.0,0.00025479,2]
[336933246,1725247848722,-940.36,0.00025479,2]
[336933247,1725247848732,-500.0,0.00025479,2]
[336933248,1725247848744,-500.0,0.00025479,2]
[336933249,1725247848754,-1052.46,0.00025479,2]
[336933250,1725247848766,-500.0,0.00025479,2]
[336933251,1725247848777,-500.0,0.00025479,2]
[336933252,1725247848787,-500.0,0.00025479,2]
[336933253,1725247848799,-500.0,0.00025479,2]
[336933254,1725247848808,-500.0,0.00025479,2]
[336933255,1725247848817,-631.87,0.00025479,2]
[336933256,1725247848826,-500.0,0.00025479,2]
[336933257,1725247848836,-500.0,0.00025479,2]
[336933258,1725247848847,-327.86573895,0.00025479,2]
[336933259,1725247848858,-500.0,0.00025479,2]
[336933260,1725247848869,-500.0,0.00025479,2]
[336933261,1725247848878,-500.0,0.00025479,2]
[336933262,1725247848887,-500.0,0.00025479,2]
[336933263,1725247848897,-585.28,0.00025479,2]
[336933264,1725247848906,-532.31,0.00025479,2]
[336933265,1725247848915,-538.09,0.00025479,2]
[336933266,1725247848924,-500.0,0.00025479,2]
[336933267,1725247848934,-724.68,0.00025479,2]
[336933268,1725247848943,-500.0,0.00025479,2]
[336933269,1725247848953,-567.37,0.00025479,2]
[336933270,1725247848962,-583.41,0.00025479,2]
[336933271,1725247848972,-500.0,0.00025479,2]
[336933272,1725247848982,-669.14,0.00025479,2]
[336933273,1725247848992,-657.85,0.00025479,2]
[336933274,1725247849003,-500.0,0.00025479,2]
[336933275,1725247849013,-500.0,0.00025479,2]
[336933276,1725247849023,-541.21,0.00025479,2]
[336933277,1725247849032,-500.0,0.00025479,2]
[336933278,1725247849042,-500.0,0.00025479,2]
[336933279,1725247849052,-2868.37,0.00025479,2]
[336933280,1725247849062,-500.0,0.00025479,2]
[336933281,1725247849071,-500.0,0.00025479,2]
[336933282,1725247849082,-872.88,0.00025479,2]
[336933283,1725247849092,-500.0,0.00025479,2]
[336933284,1725247849104,-500.0,0.00025479,2]
[336933285,1725247849113,-974.86,0.00025479,2]
[336933286,1725247849125,-510.73128895,0.00025479,2]
[336933287,1725247849134,-500.0,0.00025479,2]
[336933288,1725247849144,-541.43,0.00025479,2]
[336933289,1725247849155,-500.0,0.00025479,2]
[336933290,1725247849165,-500.0,0.00025479,2]
[336933291,1725247849175,-572.48,0.00025479,2]
[336933292,1725247849184,-500.0,0.00025479,2]
[336933293,1725247849193,-500.0,0.00025479,2]
[336933294,1725247849202,-500.0,0.00025479,2]
[336933295,1725247849212,-814.52,0.00025479,2]
[336933296,1725247849221,-500.0,0.00025479,2]
[336933297,1725247849230,-500.0,0.00025479,2]
[336933298,1725247849239,-1152.78,0.00025479,2]
[336933299,1725247849248,-795.35,0.00025479,2]
[336933300,1725247849258,-500.0,0.00025479,2]
[336933301,1725247849268,-773.51,0.00025479,2]
[336933302,1725247849279,-665.0,0.00025479,2]
[336933303,1725247849288,-619.02,0.00025479,2]
[336933304,1725247849297,-500.0,0.00025479,2]
[336933305,1725247849306,-740.77,0.00025479,2]
[336933306,1725247849315,-500.0,0.00025479,2]
[336933307,1725247849324,-1131.06,0.00025479,2]
[336933308,1725247849334,-1042.52,0.00025479,2]
[336933309,1725247849345,-500.0,0.00025479,2]
[336933310,1725247849355,-233.64354413,0.00025479,2]
[336933311,1725247849364,-1557.63,0.00025479,2]
[336933312,1725247849373,-500.0,0.00025479,2]
[336933313,1725247849383,-2308.75,0.00025479,2]
[336933314,1725247849392,-513.5,0.00025479,2]
[336933315,1725247849402,-342.42713292,0.00025479,2]
[336933316,1725247849412,-170.08215444,0.00025479,2]
[336933317,1725247849422,-2048.98,0.00025479,2]
[336933318,1725247849432,-500.0,0.00025479,2]
[336933319,1725247849442,-515.06,0.00025479,2]
[336933320,1725247849451,-500.0,0.00025479,2]
[336933321,1725247849461,-214.06304223,0.00025479,2]
[336933322,1725247849470,-500.0,0.00025479,2]
[336933323,1725247849480,-271.91919725,0.00025479,2]
[336933324,1725247849489,-665.52,0.00025479,2]
[336933325,1725247849499,-1800.19,0.00025479,2]
[336933326,1725247849626,-10167.07,0.00025479,2]
[336933327,1725247849636,-1229.05,0.00025479,2]
[336933328,1725247849645,-500.0,0.00025479,2]
[336933329,1725247849654,-1503.03,0.00025479,2]
[336933330,1725247849667,-500.0,0.00025479,2]
[336933331,1725247849676,-500.0,0.00025479,2]
[336933332,1725247849686,-500.0,0.00025479,2]
[336933333,1725247849695,-1508.79,0.00025479,2]
[336933334,1725247849705,-500.0,0.00025479,2]
[336933335,1725247849714,-1031.19,0.00025479,2]
[336933336,1725247849723,-2334.08,0.00025479,2]
[336933337,1725247849732,-565.16,0.00025479,2]
[336933338,1725247849745,-500.0,0.00025479,2]
[336933339,1725247849756,-500.0,0.00025479,2]
[336933340,1725247849766,-500.0,0.00025479,2]
[336933341,1725247849776,-907.18,0.00025479,2]
[336933342,1725247849787,-500.0,0.00025479,2]
[336933343,1725247849798,-1336.84,0.00025479,2]
[336933344,1725247849808,-500.0,0.00025479,2]
[336933345,1725247849819,-1231.19,0.00025479,2]
[336933346,1725247849829,-500.0,0.00025479,2]
[336933347,1725247849838,-1146.78,0.00025479,2]
[336933348,1725247849848,-878.8,0.00025479,2]
[336933349,1725247849860,-1102.7,0.00025479,2]
[336933350,1725247849871,-500.0,0.00025479,2]
[336933351,1725247849882,-1173.44,0.00025479,2]
[336933352,1725247849894,-500.0,0.00025479,2]
[336933353,1725247849906,-1350.13,0.00025479,2]
[336933354,1725247849917,-3800.74,0.00025479,2]
[336933355,1725247849928,-1655.52,0.00025479,2]
[336933356,1725247849938,-573.64,0.00025479,2]
[336933357,1725247849949,-909.91,0.00025479,2]
[336933358,1725247849959,-2131.56,0.00025479,2]
[336933359,1725247849969,-500.0,0.00025479,2]
[336933360,1725247849978,-1292.3,0.00025479,2]
[336933361,1725247849987,-548.55,0.00025479,2]
[336933362,1725247849997,-1223.37,0.00025479,2]
[336933363,1725247850007,-500.0,0.00025479,2]
[336933364,1725247850018,-523.02,0.00025479,2]
[336933365,1725247850027,-1177.84,0.00025479,2]
[336933366,1725247850037,-500.0,0.00025479,2]
[336933367,1725247850047,-500.0,0.00025479,2]
[336933368,1725247850057,-1157.11,0.00025479,2]
[336933369,1725247850066,-828.87,0.00025479,2]
[336933370,1725247850076,-500.0,0.00025479,2]
[336933371,1725247850086,-1662.53,0.00025479,2]
[336933372,1725247850095,-1236.59,0.00025479,2]
[336933373,1725247850107,-833.18,0.00025479,2]
[336933374,1725247850117,-500.0,0.00025479,2]
[336933375,1725247850128,-6705.5,0.00025479,2]
[336933376,1725247850138,-500.0,0.00025479,2]
[336933377,1725247850147,-151.0,0.00025479,7]
[336933378,1725247850158,-1446.77,0.00025479,2]
[336933379,1725247850168,-733.05,0.00025479,2]
[336933380,1725247850177,-1297.85,0.00025479,2]
[336933381,1725247850187,-780.64,0.00025479,2]
[336933382,1725247850196,-500.0,0.00025479,2]
[336933383,1725247850206,-500.0,0.00025479,2]
[336933384,1725247850215,-801.33,0.00025479,2]
[336933385,1725247850225,-1468.45,0.00025479,2]
[336933386,1725247850234,-500.0,0.00025479,2]
[336933387,1725247850243,-2505.73,0.00025479,2]
[336933388,1725247850253,-1303.21,0.00025479,2]
[336933389,1725247850263,-1173.96,0.00025479,2]
[336933390,1725247850274,-500.0,0.00025479,2]
[336933391,1725247850283,-1090.89,0.00025479,2]
[336933392,1725247850294,-500.0,0.00025479,2]
[336933393,1725247850303,-3037.6,0.00025479,2]
[336933394,1725247850313,-676.38,0.00025479,2]
[336933395,1725247850323,-500.0,0.00025479,2]
[336933396,1725247850332,-656.24,0.00025479,2]
[336933397,1725247850342,-618.61,0.00025479,2]
[336933398,1725247850351,-1123.72,0.00025479,2]
[336933399,1725247850361,-1038.05,0.00025479,2]
[336933400,1725247850370,-500.0,0.00025479,2]
[336933401,1725247850380,-557.66,0.00025479,2]
[336933402,1725247850390,-840.46,0.00025479,2]
[336933403,1725247850400,-1767.02,0.00025479,2]
[336933404,1725247850411,-1694.31,0.00025479,2]
[336933405,1725247850421,-500.0,0.00025479,2]
[336933406,1725247850432,-7557.96,0.00025479,2]
[336933407,1725247850443,-500.0,0.00025479,2]
[336933408,1725247850452,-1292.55,0.00025479,2]
[336933409,1725247850461,-1046.36,0.00025479,2]
[336933410,1725247850470,-500.0,0.00025479,2]
[336933411,1725247850479,-151.0,0.00025479,7]
[336933412,1725247850488,-156.78744,0.000255,8]
[336933413,1725247850498,-150.112233,0.000256,9]
[336933414,1725247850508,-255.426678,0.00025613,2]
[336933415,1725247850519,-276.166198,0.00025613,2]
[336933416,1725247850529,-150.112233,0.000257,6]
[336933417,1725247850539,-261.92322576,0.00025743,3]
[336933418,1725247850548,-150.0,0.00025744,2]
[336933419,1725247850559,-523.0,0.00025744,2]
[336933420,1725247850568,-500.0,0.00025753,2]
[336933421,1725247850578,-500.0,0.00025753,2]
[336933422,1725247850588,-500.0,0.00025753,2]
[336933423,1725247850597,-500.0,0.00025753,2]
[336933424,1725247850606,-500.0,0.00025753,2]
[336933425,1725247850616,-500.0,0.00025753,2]
[336933426,1725247850626,-542.76,0.00025753,2]
[336933427,1725247850636,-553.72,0.00025753,2]
[336933428,1725247850646,-500.0,0.00025753,2]
[336933429,1725247850657,-500.0,0.00025753,2]
[336933430,1725247850669,-500.0,0.00025753,2]
[336933431,1725247850679,-549.89250049,0.00025753,2]
[336933432,1725247850688,-500.0,0.00025753,2]
[336933433,1725247850699,-940.36,0.00025753,2]
[336933434,1725247850709,-500.0,0.00025753,2]
[336933435,1725247850719,-500.0,0.00025753,2]
[336933436,1725247850729,-1052.46,0.00025753,2]
[336933437,1725247850738,-500.0,0.00025753,2]
[336933438,1725247850749,-500.0,0.00025753,2]
[336933439,1725247850762,-500.0,0.00025753,2]
[336933440,1725247850772,-500.0,0.00025753,2]
[336933441,1725247850781,-500.0,0.00025753,2]
[336933442,1725247850791,-631.87,0.00025753,2]
[336933443,1725247850802,-500.0,0.00025753,2]
[336933444,1725247850811,-500.0,0.00025753,2]
[336933445,1725247850822,-249.5624225,0.00025753,2]
[336933446,1725247850832,-500.0,0.00025753,2]
[336933447,1725247850841,-500.0,0.00025753,2]
[336933448,1725247850853,-500.0,0.00025753,2]
[336933449,1725247850864,-585.28,0.00025753,2]
[336933450,1725247850873,-532.31,0.00025753,2]
[336933451,1725247850883,-538.09,0.00025753,2]
[336933452,1725247850893,-500.0,0.00025753,2]
[336933453,1725247850902,-724.68,0.00025753,2]
[336933454,1725247850911,-500.0,0.00025753,2]
[336933455,1725247850921,-567.37,0.00025753,2]
[336933456,1725247850930,-583.41,0.00025753,2]
[336933457,1725247850939,-500.0,0.00025753,2]
[336933458,1725247850949,-669.14,0.00025753,2]
[336933459,1725247850958,-657.85,0.00025753,2]
[336933460,1725247850967,-500.0,0.00025753,2]
[336933461,1725247850976,-500.0,0.00025753,2]
[336933462,1725247850985,-541.21,0.00025753,2]
[336933463,1725247850997,-500.0,0.00025753,2]
[336933464,1725247851009,-256.801416,0.00025753,7]
[336933465,1725247851020,-256.801416,0.00025753,7]
[336933466,1725247851030,-500.0,0.00025753,2]
[336933467,1725247851042,-2868.37,0.00025753,2]
[336933468,1725247851051,-500.0,0.00025753,2]
[336933469,1725247851061,-872.88,0.00025753,2]
[336933470,1725247851070,-500.0,0.00025753,2]
[336933471,1725247851080,-500.0,0.00025753,2]
[336933472,1725247851089,-974.86,0.00025753,2]
[336933473,1725247851100,-500.0,0.00025753,2]
[336933474,1725247851109,-541.43,0.00025753,2]
[336933475,1725247851119,-500.0,0.00025753,2]
[336933476,1725247851128,-500.0,0.00025753,2]
[336933477,1725247851137,-572.48,0.00025753,2]
[336933478,1725247851146,-500.0,0.00025753,2]
[336933479,1725247851155,-500.0,0.00025753,2]
[336933480,1725247851164,-559.56438059,0.00025753,2]
[336933481,1725247851173,-814.52,0.00025753,2]
[336933482,1725247851182,-500.0,0.00025753,2]
[336933483,1725247851191,-500.0,0.00025753,2]
[336933484,1725247851201,-1152.78,0.00025753,2]
[336933485,1725247851210,-795.35,0.00025753,2]
[336933486,1725247851219,-500.0,0.00025753,2]
[336933487,1725247851228,-773.51,0.00025753,2]
[336933488,1725247851237,-665.0,0.00025753,2]
[336933489,1725247851246,-619.02,0.00025753,2]
[336933490,1725247851255,-500.0,0.00025753,2]
[336933491,1725247851266,-740.77,0.00025753,2]
[336933492,1725247851275,-334.12931751,0.00025753,2]
[336933493,1725247851285,-1131.06,0.00025753,2]
[336933494,1725247851294,-1042.52,0.00025753,2]
[336933495,1725247851304,-500.0,0.00025753,2]
[336933496,1725247851313,-1557.63,0.00025753,2]
[336933497,1725247851323,-500.0,0.00025753,2]
[336933498,1725247851332,-2308.75,0.00025753,2]
[336933499,1725247851342,-513.5,0.00025753,2]
[336933500,1725247851351,-2048.98,0.00025753,2]
[336933501,1725247851361,-500.0,0.00025753,2]
[336933502,1725247851370,-515.06,0.00025753,2]
[336933503,1725247851379,-500.0,0.00025753,2]
[336933504,1725247851389,-500.0,0.00025753,2]
[336933505,1725247851398,-665.52,0.00025753,2]
[336933506,1725247851407,-1800.19,0.00025753,2]
[336933507,1725247851416,-10167.07,0.00025753,2]
[336933508,1725247851425,-1229.05,0.00025753,2]
[336933509,1725247851435,-500.0,0.00025753,2]
[336933510,1725247851444,-1503.03,0.00025753,2]
[336933511,1725247851454,-500.0,0.00025753,2]
[336933512,1725247851463,-500.0,0.00025753,2]
[336933513,1725247851472,-500.0,0.00025753,2]
[336933514,1725247851481,-1508.79,0.00025753,2]
[336933515,1725247851491,-500.0,0.00025753,2]
[336933516,1725247851500,-1031.19,0.00025753,2]
[336933517,1725247851511,-2334.08,0.00025753,2]
[336933518,1725247851521,-565.16,0.00025753,2]
[336933519,1725247851531,-500.0,0.00025753,2]
[336933520,1725247851542,-500.0,0.00025753,2]
[336933521,1725247851552,-500.0,0.00025753,2]
[336933522,1725247851562,-907.18,0.00025753,2]
[336933523,1725247851571,-500.0,0.00025753,2]
[336933524,1725247851581,-1336.84,0.00025753,2]
[336933525,1725247851590,-500.0,0.00025753,2]
[336933526,1725247851601,-1231.19,0.00025753,2]
[336933527,1725247851611,-500.0,0.00025753,2]
[336933528,1725247851622,-1146.78,0.00025753,2]
[336933529,1725247851633,-878.8,0.00025753,2]
[336933530,1725247851645,-1102.7,0.00025753,2]
[336933531,1725247851656,-500.0,0.00025753,2]
[336933532,1725247851668,-1173.44,0.00025753,2]
[336933533,1725247851677,-500.0,0.00025753,2]
[336933534,1725247851687,-1350.13,0.00025753,2]
[336933535,1725247851696,-3800.74,0.00025753,2]
[336933536,1725247851707,-1655.52,0.00025753,2]
[336933537,1725247851716,-573.64,0.00025753,2]
[336933538,1725247851727,-909.91,0.00025753,2]
[336933539,1725247851738,-2131.56,0.00025753,2]
[336933540,1725247851750,-500.0,0.00025753,2]
[336933541,1725247851760,-1292.3,0.00025753,2]
[336933542,1725247851777,-548.55,0.00025753,2]
[336933543,1725247851786,-1223.37,0.00025753,2]
[336933544,1725247851795,-500.0,0.00025753,2]
[336933545,1725247851804,-523.02,0.00025753,2]
[336933546,1725247851814,-1177.84,0.00025753,2]
[336933547,1725247851824,-500.0,0.00025753,2]
[336933548,1725247851834,-500.0,0.00025753,2]
[336933549,1725247851843,-1157.11,0.00025753,2]
[336933550,1725247851852,-828.87,0.00025753,2]
[336933551,1725247851861,-500.0,0.00025753,2]
[336933552,1725247851871,-1662.53,0.00025753,2]
[336933553,1725247851880,-1053.95392315,0.00025753,2]
[336933557,1725247911052,160.0,0.00022,2]
[336933561,1725248034172,166.96629,0.00014247,2]
[336933563,1725248234431,265.0,0.00025,120]
[336933565,1725248542432,165.77513,0.00014247,2]
[336933572,1725248851149,-198.36684844,0.00023277,2]
[336933580,1725248947148,-250.0000057,0.00022742,2]
[336933581,1725248947174,-300.0,0.00023277,2]
[336933582,1725248947197,-300.0,0.00023277,2]
[336933583,1725248947218,-1271.24213535,0.00023278,2]
[336933584,1725248947240,-33621.75523777,0.00023278,2]
[336933585,1725248953299,-418.87152601,0.00023278,2]
[336933586,1725248953322,-162.331416,0.00023378,2]
[336933587,1725248953345,-380.923723,0.00023836,2]
[336933588,1725249000281,206.74575111,0.000249,120]
[336933619,1725249032053,-1180.73284507,0.00024557,2]